fUST/lending_fUST_20240306
["ID","MTS","AMOUNT","RATE_DAILY","PERIOD"]
[317077925,1709676632749,-500.0,0.00023287,2]
[317077926,1709676632760,-500.0,0.00023287,2]
[317077927,1709676632769,-500.0,0.00023287,2]
[317077928,1709676632779,-500.0,0.00023287,2]
[317077929,1709676632794,-500.0,0.00023287,2]
[317077931,1709676632810,-500.0,0.00023287,2]
[317077932,1709676632819,-500.0,0.00023287,2]
[317077933,1709676632829,-501.69786853,0.00023287,2]
[317077934,1709676632839,-500.0,0.00023287,2]
[317077935,1709676632849,-500.0,0.00023287,2]
[317077936,1709676632859,-500.0,0.00023287,2]
[317077937,1709676632868,-500.0,0.00023287,2]
[317077938,1709676632878,-500.0,0.00023287,2]
[317077939,1709676632891,-500.0,0.00023287,2]
[317077940,1709676632900,-500.0,0.00023287,2]
[317077941,1709676632909,-500.0,0.00023287,2]
[317077942,1709676632918,-500.0,0.00023287,2]
[317077943,1709676632928,-500.0,0.00023287,2]
[317077944,1709676632938,-500.0,0.00023287,2]
[317077945,1709676632948,-429.81676954,0.00023287,2]
[317077946,1709676632958,-500.0,0.00023287,2]
[317077947,1709676632967,-215.19758158,0.00023287,2]
[317077948,1709676632978,-500.0,0.00023287,2]
[317077949,1709676632987,-500.0,0.00023287,2]
[317077950,1709676632997,-500.0,0.00023287,2]
[317077951,1709676633007,-500.0,0.00023287,2]
[317077952,1709676633016,-500.0,0.00023287,2]
[317077953,1709676633026,-500.0,0.00023287,2]
[317077954,1709676633036,-500.0,0.00023287,2]
[317077955,1709676633048,-500.0,0.00023287,2]
[317077956,1709676633058,-500.0,0.00023287,2]
[317077957,1709676633067,-500.0,0.00023287,2]
[317077958,1709676633077,-500.0,0.00023287,2]
[317077959,1709676633087,-500.0,0.00023287,2]
[317077960,1709676633098,-500.0,0.00023287,2]
[317077961,1709676633108,-500.0,0.00023287,2]
[317077962,1709676633117,-500.0,0.00023287,2]
[317077963,1709676633130,-500.0,0.00023287,2]
[317077964,1709676633141,-500.0,0.00023287,2]
[317077965,1709676633150,-500.0,0.00023287,2]
[317077966,1709676633159,-500.0,0.00023287,2]
[317077967,1709676633168,-500.0,0.00023287,2]
[317077968,1709676633177,-500.0,0.00023287,2]
[317077969,1709676633187,-500.0,0.00023287,2]
[317077970,1709676633196,-567.96,0.00023287,2]
[317077971,1709676633209,-500.0,0.00023287,2]
[317077972,1709676633219,-500.0,0.00023287,2]
[317077973,1709676633229,-249.07093256,0.00023287,2]
[317077974,1709676633239,-500.0,0.00023287,2]
[317077975,1709676633249,-500.0,0.00023287,2]
[317077976,1709676633261,-557.33,0.00023287,2]
[317077977,1709676633273,-500.0,0.00023287,2]
[317077978,1709676633283,-500.0,0.00023287,2]
[317077979,1709676633293,-586.63,0.00023287,2]
[317077980,1709676633303,-500.0,0.00023287,2]
[317077981,1709676633313,-500.0,0.00023287,2]
[317077982,1709676633322,-500.0,0.00023287,2]
[317077983,1709676633331,-132.79953924,0.00023287,2]
[317078002,1709676638274,-609.12552053,0.00021187,2]
[317078003,1709676638284,-48.60805118,0.00023287,2]
[317078004,1709676638294,-500.0,0.00023287,2]
[317078005,1709676638303,-500.0,0.00023287,2]
[317078006,1709676638314,-500.0,0.00023287,2]
[317078007,1709676638325,-500.0,0.00023287,2]
[317078008,1709676638334,-500.0,0.00023287,2]
[317078009,1709676638344,-500.0,0.00023287,2]
[317078010,1709676638354,-500.0,0.00023287,2]
[317078011,1709676638364,-500.0,0.00023287,2]
[317078012,1709676638373,-500.0,0.00023287,2]
[317078013,1709676638382,-508.925462,0.00023287,2]
[317078014,1709676638393,-501.6969863,0.00023287,2]
[317078015,1709676638402,-500.0,0.00023287,2]
[317078016,1709676638412,-500.0,0.00023287,2]
[317078017,1709676638422,-500.0,0.00023287,2]
[317078018,1709676638432,-500.0,0.00023287,2]
[317078019,1709676638441,-500.0,0.00023287,2]
[317078020,1709676638450,-500.0,0.00023287,2]
[317078021,1709676638460,-500.0,0.00023287,2]
[317078022,1709676638469,-340.6188308,0.00023287,2]
[317078023,1709676638478,-500.0,0.00023287,2]
[317078024,1709676638488,-500.0,0.00023287,2]
[317078025,1709676638497,-500.0,0.00023287,2]
[317078026,1709676638506,-500.0,0.00023287,2]
[317078027,1709676638516,-500.0,0.00023287,2]
[317078028,1709676638525,-2365.33,0.00023287,2]
[317078029,1709676638535,-2365.33,0.00023287,2]
[317078030,1709676638544,-500.0,0.00023287,2]
[317078031,1709676638555,-860.28,0.00023287,2]
[317078032,1709676638564,-860.28,0.00023287,2]
[317078033,1709676638574,-891.07,0.00023287,2]
[317078034,1709676638583,-891.07,0.00023287,2]
[317078035,1709676638592,-1679.09,0.00023287,2]
[317078036,1709676638602,-1679.09,0.00023287,2]
[317078037,1709676638611,-504.23,0.00023287,2]
[317078038,1709676638621,-500.0,0.00023287,2]
[317078039,1709676638630,-500.0,0.00023287,2]
[317078040,1709676638640,-362.62927101,0.00023287,2]
[317078041,1709676638649,-506.51747823,0.00023287,2]
[317078042,1709676638658,-500.0,0.00023287,2]
[317078043,1709676638667,-545.69,0.00023287,2]
[317078044,1709676638675,-596.8790771,0.00023287,2]
[317078045,1709676638685,-500.0,0.00023287,2]
[317078046,1709676638694,-500.0,0.00023287,2]
[317078047,1709676638705,-500.0,0.00023287,2]
[317078048,1709676638714,-500.0,0.00023287,2]
[317078049,1709676638723,-632.17988642,0.00023287,2]
[317078050,1709676638733,-500.0,0.00023287,2]
[317078051,1709676638742,-500.0,0.00023287,2]
[317078052,1709676638751,-500.0,0.00023287,2]
[317078053,1709676638760,-500.0,0.00023287,2]
[317078054,1709676638769,-500.0,0.00023287,2]
[317078055,1709676638778,-500.0,0.00023287,2]
[317078056,1709676638787,-690.08,0.00023287,2]
[317078057,1709676638797,-690.08,0.00023287,2]
[317078058,1709676638806,-640.81,0.00023287,2]
[317078059,1709676638815,-640.81,0.00023287,2]
[317078060,1709676638825,-626.43374487,0.00023287,2]
[317078061,1709676638834,-500.6805688,0.00023287,2]
[317078062,1709676638843,-500.0,0.00023287,2]
[317078063,1709676638853,-500.0,0.00023287,2]
[317078064,1709676638862,-500.0,0.00023287,2]
[317078065,1709676638871,-500.0,0.00023287,2]
[317078066,1709676638881,-500.0,0.00023287,2]
[317078067,1709676638891,-500.0,0.00023287,2]
[317078068,1709676638901,-285.01228664,0.00023287,2]
[317078069,1709676638910,-500.0,0.00023287,2]
[317078070,1709676638919,-500.0,0.00023287,2]
[317078071,1709676638929,-516.16088611,0.00023287,2]
[317078072,1709676638939,-500.0,0.00023287,2]
[317078073,1709676638948,-500.0,0.00023287,2]
[317078074,1709676638958,-500.0,0.00023287,2]
[317078075,1709676638967,-502.01642943,0.00023287,2]
[317078076,1709676638976,-500.0,0.00023287,2]
[317078077,1709676638985,-502.40552705,0.00023287,2]
[317078078,1709676638994,-500.0,0.00023287,2]
[317078079,1709676639003,-500.0,0.00023287,2]
[317078080,1709676639012,-500.0,0.00023287,2]
[317078081,1709676639021,-500.0,0.00023287,2]
[317078082,1709676639031,-500.0,0.00023287,2]
[317078083,1709676639040,-500.0,0.00023287,2]
[317078084,1709676639050,-500.0,0.00023287,2]
[317078085,1709676639059,-252.122325,0.00023287,2]
[317078086,1709676639068,-500.0,0.00023287,2]
[317078087,1709676639078,-500.0,0.00023287,2]
[317078088,1709676639087,-753.57,0.00023287,2]
[317078089,1709676639099,-753.57,0.00023287,2]
[317078090,1709676639108,-590.56327125,0.00023287,2]
[317078091,1709676639118,-500.0,0.00023287,2]
[317078092,1709676639129,-500.0,0.00023287,2]
[317078093,1709676639140,-500.0,0.00023287,2]
[317078094,1709676639149,-500.0,0.00023287,2]
[317078095,1709676639158,-500.0,0.00023287,2]
[317078096,1709676639167,-500.0,0.00023287,2]
[317078097,1709676639176,-500.0,0.00023287,2]
[317078098,1709676639185,-500.0,0.00023287,2]
[317078099,1709676639195,-500.0,0.00023287,2]
[317078100,1709676639204,-158.53669112,0.00023287,2]
[317078101,1709676639215,-500.0,0.00023287,2]
[317078102,1709676639225,-500.0,0.00023287,2]
[317078103,1709676639233,-500.0,0.00023287,2]
[317078104,1709676639243,-284.13628867,0.00023287,2]
[317078105,1709676639253,-500.0,0.00023287,2]
[317078106,1709676639262,-500.0,0.00023287,2]
[317078107,1709676639271,-3001.37835507,0.000235,2]
[317078108,1709676639281,-5487.19185046,0.00023649,2]
[317078109,1709676639291,-500.0,0.00023745,2]
[317078110,1709676639300,-500.0,0.00023745,2]
[317078111,1709676639310,-500.0,0.00023745,2]
[317078112,1709676639319,-337.74,0.00023745,2]
[317078113,1709676639328,-500.0,0.00023745,2]
[317078114,1709676639338,-690.08,0.00023745,2]
[317078115,1709676639347,-640.81,0.00023745,2]
[317078116,1709676639357,-500.0,0.00023745,2]
[317078117,1709676639366,-753.57,0.00023745,2]
[317078118,1709676639376,-500.0,0.00023745,2]
[317078119,1709676639385,-500.0,0.00023745,2]
[317078120,1709676639395,-500.0,0.00023746,2]
[317078121,1709676639404,-500.0,0.00023746,2]
[317078122,1709676639413,-500.0,0.00023746,2]
[317078123,1709676639422,-632.4,0.00023746,2]
[317078124,1709676639431,-500.0,0.00023746,2]
[317078125,1709676639441,-500.0,0.00023746,2]
[317078126,1709676639451,-597.38343106,0.00023746,2]
[317078127,1709676639460,-500.0,0.00023746,2]
[317078128,1709676639470,-500.0,0.00023746,2]
[317078129,1709676639480,-500.0,0.00023747,2]
[317078130,1709676639490,-500.0,0.00023747,2]
[317078131,1709676639499,-500.0,0.00023747,2]
[317078132,1709676639510,-500.0,0.00023747,2]
[317078133,1709676639523,-500.0,0.00023747,2]
[317078134,1709676639534,-500.0,0.00023747,2]
[317078135,1709676639543,-500.0,0.00023747,2]
[317078136,1709676639553,-500.0,0.00023747,2]
[317078137,1709676639562,-500.0,0.00023747,2]
[317078138,1709676639572,-500.0,0.00023747,2]
[317078140,1709676639580,-500.0,0.00023747,2]
[317078142,1709676639589,-500.0,0.00023747,2]
[317078143,1709676639600,-407.87210433,0.00023747,2]
[317078144,1709676639609,-501.40916798,0.00023747,2]
[317078145,1709676639618,-500.0,0.00023747,2]
[317078146,1709676639628,-500.0,0.00023747,2]
[317078147,1709676639638,-500.0,0.00023747,2]
[317078148,1709676639651,-500.0,0.00023747,2]
[317078149,1709676639661,-500.0,0.00023747,2]
[317078150,1709676639671,-500.0,0.00023747,2]
[317078151,1709676639681,-500.0,0.00023747,2]
[317078152,1709676639691,-500.0,0.00023747,2]
[317078153,1709676639700,-500.0,0.00023747,2]
[317078154,1709676639710,-500.0,0.00023747,2]
[317078155,1709676639720,-500.0,0.00023747,2]
[317078156,1709676639729,-500.0,0.00023747,2]
[317078157,1709676639738,-269.42,0.00023747,2]
[317078158,1709676639748,-2365.33,0.00023747,2]
[317078159,1709676639757,-860.28,0.00023747,2]
[317078160,1709676639767,-891.07,0.00023747,2]
[317078161,1709676639776,-1679.09,0.00023747,2]
[317078162,1709676639785,-500.0,0.00023747,2]
[317078163,1709676639794,-690.08,0.00023747,2]
[317078164,1709676639803,-640.81,0.00023747,2]
[317078165,1709676639813,-500.0,0.00023747,2]
[317078166,1709676639823,-500.0,0.00023747,2]
[317078167,1709676639832,-500.0,0.00023747,2]
[317078168,1709676639841,-239.63704569,0.00023747,2]
[317078169,1709676639851,-753.57,0.00023747,2]
[317078170,1709676639860,-500.0,0.00023747,2]
[317078171,1709676639870,-500.0,0.00023747,2]
[317078172,1709676639879,-500.0,0.00023748,2]
[317078173,1709676639893,-500.0,0.00023748,2]
[317078174,1709676639903,-213.35786291,0.00023748,2]
[317078175,1709676639912,-500.0,0.00023748,2]
[317078176,1709676639922,-500.0,0.00023748,2]
[317078177,1709676639931,-500.0,0.00023748,2]
[317078178,1709676639940,-500.0,0.00023748,2]
[317078179,1709676639950,-500.0,0.00023748,2]
[317078180,1709676639959,-170.27058464,0.00023748,2]
[317078181,1709676639969,-500.0,0.00023748,2]
[317078182,1709676639978,-500.0,0.00023748,2]
[317078183,1709676639988,-417.06,0.00023748,2]
[317078184,1709676639997,-500.0,0.00023748,2]
[317078185,1709676640006,-500.0,0.00023748,2]
[317078186,1709676640016,-500.0,0.00023748,2]
[317078187,1709676640025,-500.0,0.00023748,2]
[317078188,1709676640035,-500.0,0.00023748,2]
[317078189,1709676640045,-500.0,0.00023748,2]
[317078190,1709676640055,-500.0,0.00023748,2]
[317078191,1709676640064,-500.0,0.00023748,2]
[317078192,1709676640073,-500.0,0.00023748,2]
[317078193,1709676640083,-500.0,0.00023748,2]
[317078194,1709676640093,-500.0,0.00023748,2]
[317078195,1709676640102,-500.0,0.00023748,2]
[317078196,1709676640111,-500.0,0.00023748,2]
[317078197,1709676640122,-500.0,0.00023748,2]
[317078198,1709676640131,-500.0,0.00023748,2]
[317078199,1709676640141,-500.0,0.00023748,2]
[317078200,1709676640151,-500.0,0.00023748,2]
[317078201,1709676640161,-500.0,0.00023748,2]
[317078202,1709676640170,-500.0,0.00023748,2]
[317078203,1709676640179,-500.0,0.00023748,2]
[317078204,1709676640189,-1679.09,0.00023748,2]
[317078205,1709676640200,-1679.09,0.00023748,2]
[317078206,1709676640210,-1679.09,0.00023748,2]
[317078207,1709676640219,-1679.09,0.00023748,2]
[317078208,1709676640228,-1679.09,0.00023748,2]
[317078209,1709676640237,-1679.09,0.00023748,2]
[317078210,1709676640246,-1679.09,0.00023748,2]
[317078211,1709676640255,-500.0,0.00023748,2]
[317078212,1709676640265,-500.0,0.00023748,2]
[317078213,1709676640274,-500.0,0.00023748,2]
[317078214,1709676640284,-500.0,0.00023748,2]
[317078215,1709676640294,-500.0,0.00023748,2]
[317078216,1709676640303,-170.91937666,0.00023759,2]
[317078217,1709676640312,-1679.09,0.00023847,2]
[317078218,1709676640321,-14999.98,0.00023873,2]
[317078219,1709676640331,-421.46899729,0.00023876,2]
[317078220,1709676640340,-500.0,0.00023876,2]
[317078221,1709676640350,-500.0,0.00023876,2]
[317078222,1709676640359,-500.0,0.00023876,2]
[317078223,1709676640369,-500.0,0.00023876,2]
[317078224,1709676640378,-500.0,0.00023876,2]
[317078226,1709676640387,-860.28,0.00023876,2]
[317078228,1709676640398,-174.23266301,0.00023876,2]
[317078229,1709676640408,-690.08,0.00023876,2]
[317078230,1709676640417,-640.81,0.00023876,2]
[317078235,1709676640504,-500.0,0.00023876,2]
[317078237,1709676640514,-753.57,0.00023876,2]
[317078239,1709676640522,-500.0,0.00023876,2]
[317078241,1709676640531,-500.0,0.00023876,2]
[317078243,1709676640540,-14999.92,0.00023876,2]
[317078245,1709676640550,-500.0,0.00023876,2]
[317078247,1709676640559,-153.90473894,0.00023876,2]
[317078249,1709676640568,-12499.98,0.00023877,2]
[317078251,1709676640577,-5500.0,0.00023877,2]
[317078253,1709676640586,-12500.0,0.00023878,2]
[317078255,1709676640596,-15000.0,0.00023878,2]
[317078257,1709676640604,-690.08,0.0002388,2]
[317078259,1709676640613,-640.81,0.0002388,2]
[317078261,1709676640623,-753.57,0.0002388,2]
[317078263,1709676640632,-500.0,0.0002388,2]
[317078265,1709676640641,-14999.97,0.0002388,2]
[317078267,1709676640651,-12499.99,0.0002388,2]
[317078269,1709676640660,-500.0,0.00023881,2]
[317078271,1709676640670,-500.0,0.00023881,2]
[317078273,1709676640679,-2365.33,0.00023881,2]
[317078275,1709676640688,-860.28,0.00023881,2]
[317078277,1709676640697,-891.07,0.00023881,2]
[317078279,1709676640706,-500.0,0.00023881,2]
[317078281,1709676640716,-638.34,0.00023881,2]
[317078283,1709676640725,-500.0,0.00023881,2]
[317078285,1709676640734,-14999.97,0.00023881,2]
[317078287,1709676640743,-12500.18,0.00023884,2]
[317078289,1709676640752,-500.0,0.00023887,2]
[317078291,1709676640761,-2365.33,0.00023887,2]
[317078293,1709676640770,-860.28,0.00023887,2]
[317078295,1709676640779,-891.07,0.00023887,2]
[317078297,1709676640788,-690.08,0.00023887,2]
[317078299,1709676640797,-640.81,0.00023887,2]
[317078301,1709676640807,-500.0,0.00023887,2]
[317078303,1709676640815,-753.57,0.00023887,2]
[317078305,1709676640825,-500.0,0.00023887,2]
[317078307,1709676640834,-521.47640338,0.00023887,2]
[317078309,1709676640844,-12499.98,0.00023887,2]
[317078311,1709676640853,-15000.01,0.00023888,2]
[317078313,1709676640862,-500.0,0.00023889,2]
[317078316,1709676640872,-500.0,0.00023889,2]
[317078317,1709676640881,-860.28,0.00023889,2]
[317078320,1709676640892,-690.08,0.00023889,2]
[317078321,1709676640901,-640.81,0.00023889,2]
[317078324,1709676640911,-753.57,0.00023889,2]
[317078326,1709676640920,-12499.98,0.00023889,2]
[317078328,1709676640929,-8239.79880319,0.0002389,2]
[317078330,1709676640938,-500.0,0.0002389,2]
[317078331,1709676640948,-500.0,0.0002389,2]
[317078334,1709676640957,-15000.0,0.0002389,2]
[317078336,1709676640966,-397.11651725,0.00023891,3]
[317078338,1709676640974,-15000.0,0.00023891,2]
[317078340,1709676640984,-14999.99,0.00023891,2]
[317078342,1709676640993,-14999.96,0.00023891,2]
[317078343,1709676641002,-500.0,0.00023892,2]
[317078346,1709676641011,-2365.33,0.00023892,2]
[317078347,1709676641020,-860.28,0.00023892,2]
[317078349,1709676641030,-891.07,0.00023892,2]
[317078351,1709676641040,-690.08,0.00023892,2]
[317078354,1709676641052,-640.81,0.00023892,2]
[317078355,1709676641061,-500.0,0.00023892,2]
[317078358,1709676641071,-753.57,0.00023892,2]
[317078359,1709676641080,-291.76,0.00023892,2]
[317078361,1709676641090,-14999.99,0.00023892,2]
[317078363,1709676641103,-15000.0,0.00023893,2]
[317078365,1709676641112,-14999.98,0.00023893,2]
[317078367,1709676641121,-12499.98,0.00023894,2]
[317078369,1709676641130,-500.0,0.00023896,2]
[317078371,1709676641142,-860.28,0.00023896,2]
[317078373,1709676641152,-690.08,0.00023896,2]
[317078376,1709676641161,-640.81,0.00023896,2]
[317078378,1709676641171,-753.57,0.00023896,2]
[317078380,1709676641181,-14999.97,0.00023896,2]
[317078381,1709676641190,-12499.99,0.00023896,2]
[317078383,1709676641200,-690.08,0.00023897,2]
[317078386,1709676641210,-640.81,0.00023897,2]
[317078388,1709676641219,-753.57,0.00023897,2]
[317078390,1709676641228,-14999.97,0.00023897,2]
[317078392,1709676641237,-15000.0,0.00023898,2]
[317078394,1709676641248,-12500.0,0.00023898,2]
[317078396,1709676641257,-2365.33,0.000239,2]
[317078398,1709676641268,-860.28,0.000239,2]
[317078400,1709676641277,-891.07,0.000239,2]
[317078402,1709676641286,-500.0,0.000239,2]
[317078404,1709676641295,-191.15,0.000239,2]
[317078405,1709676641304,-252.31022995,0.00023901,2]
[317078407,1709676641313,-500.0,0.00023901,2]
[317078409,1709676641322,-500.0,0.00023901,2]
[317078412,1709676641332,-1679.09,0.00023901,2]
[317078414,1709676641342,-12320.78,0.00023902,2]
[317078416,1709676641351,-1679.09,0.00023903,2]
[317078418,1709676641360,-14619.48,0.00023903,2]
[317078420,1709676641369,-341.06053554,0.00023907,2]
[317078422,1709676641378,-500.0,0.00023907,2]
[317078424,1709676641387,-860.28,0.00023907,2]
[317078426,1709676641398,-1679.09,0.00023907,2]
[317078428,1709676641406,-690.08,0.00023907,2]
[317078430,1709676641415,-640.81,0.00023907,2]
[317078432,1709676641425,-753.57,0.00023907,2]
[317078433,1709676641434,-15000.0,0.00023908,2]
[317078435,1709676641443,-1679.09,0.00023909,2]
[317078437,1709676641452,-151.177264,0.00023909,2]
[317078440,1709676641462,-1763.99835422,0.00023909,2]
[317078449,1709676641539,-1570.92564338,0.00023909,2]
[317078451,1709676641553,-1438.04442077,0.00023909,2]
[317078454,1709676641568,-7727.02158163,0.00023909,2]
[317078456,1709676641579,-2365.33,0.0002391,2]
[317078458,1709676641591,-891.07,0.0002391,2]
[317078461,1709676641602,-1679.09,0.0002391,2]
[317078463,1709676641614,-500.0,0.0002391,2]
[317078465,1709676641624,-151.470514,0.00023911,2]
[317078467,1709676641636,-151.0,0.00023911,2]
[317078470,1709676641648,-3175.02411144,0.00023911,2]
[317078477,1709676641708,-387.93541998,0.00023287,2]
[317078480,1709676641722,-112.06458002,0.00023287,2]
[317078482,1709676641733,-3417.02034172,0.00023911,2]
[317078484,1709676641749,-3563.99998834,0.00023911,2]
[317078487,1709676641766,-4843.9255585,0.00023911,2]
[317078490,1709676641777,-1679.09,0.00023914,2]
[317078492,1709676641788,-1679.09,0.00023915,2]
[317078494,1709676641799,-690.08,0.00023915,2]
[317078496,1709676641809,-640.81,0.00023915,2]
[317078498,1709676641819,-753.57,0.00023915,2]
[317078500,1709676641831,-187.3331415,0.00023916,2]
[317078673,1709676643346,-5000.0,0.00023173,7]
[317078677,1709676643359,-216.9668585,0.00023916,2]
[317078680,1709676643369,-860.28,0.00023916,2]
[317078683,1709676643380,-1679.09,0.00023917,2]
[317078686,1709676643393,-179.342752,0.00023917,2]
[317078688,1709676643403,-179.342752,0.00023917,2]
[317078691,1709676643414,-3835.26879899,0.00023917,2]
[317078991,1709676646454,-3385.7502,0.00023917,2]
[317078994,1709676646468,-1500.28405,0.00023917,2]
[317088126,1709677705987,10000.0,0.0001915,2]
[317088127,1709677714817,10000.0,0.0001915,2]
[317088128,1709677724136,10000.0,0.0001915,2]
[317088134,1709677750350,6895.0,0.0001915,2]
[317088271,1709677832453,-155.08064193,0.00020826,2]
[317088272,1709677832467,-168.0407288,0.00020827,2]
[317088273,1709677832477,-627.12015703,0.00021139,2]
[317088317,1709677838357,-1253.59089003,0.00021139,2]
[317088319,1709677838366,-371.73438,0.0002114,2]
[317088320,1709677838376,-1017.94990818,0.00021778,2]
[317088322,1709677838385,-482.77299703,0.00021808,2]
[317088323,1709677838395,-50000.0,0.00022229,7]
[317088324,1709677838405,-174.08155167,0.00022646,2]
[317088326,1709677838414,-155.0,0.00022746,2]
[317088327,1709677838424,-156.10565232,0.000229,2]
[317088329,1709677838433,-156.10565232,0.000229,2]
[317088330,1709677838442,-156.10565232,0.000229,2]
[317088331,1709677838451,-156.10565232,0.000229,2]
[317088333,1709677838462,-156.10565232,0.000229,2]
[317088334,1709677838474,-156.10565232,0.000229,2]
[317088336,1709677838483,-156.10565232,0.000229,2]
[317088337,1709677838493,-156.10565232,0.000229,2]
[317088338,1709677838502,-156.10565232,0.000229,2]
[317088340,1709677838514,-156.10565232,0.000229,2]
[317088341,1709677838523,-156.10565232,0.000229,2]
[317088343,1709677838533,-156.1,0.000229,2]
[317088344,1709677838545,-374.65356557,0.000229,2]
[317088345,1709677838558,-374.65356557,0.000229,2]
[317088347,1709677838568,-374.65356557,0.000229,2]
[317088348,1709677838578,-374.65356557,0.000229,2]
[317088350,1709677838587,-374.65356557,0.000229,2]
[317088351,1709677838597,-374.65356557,0.000229,2]
[317088352,1709677838607,-374.65356557,0.000229,2]
[317088354,1709677838616,-374.65356557,0.000229,2]
[317088355,1709677838626,-374.65356557,0.000229,2]
[317088356,1709677838636,-374.65356557,0.000229,2]
[317088358,1709677838644,-374.65356557,0.000229,2]
[317088359,1709677838654,-374.65356557,0.000229,2]
[317088361,1709677838662,-374.65356557,0.000229,2]
[317088362,1709677838671,-374.65356557,0.000229,2]
[317088363,1709677838681,-374.65356557,0.000229,2]
[317088365,1709677838690,-374.65356557,0.000229,2]
[317088366,1709677838700,-374.65356557,0.000229,2]
[317088368,1709677838709,-374.65356557,0.000229,2]
[317088369,1709677838719,-374.65356557,0.000229,2]
[317088370,1709677838728,-374.65,0.000229,2]
[317088372,1709677838738,-180.58,0.0002299,3]
[317088373,1709677838747,-541.76,0.0002299,3]
[317088375,1709677838757,-205.44,0.00022999,2]
[317088376,1709677838767,-205.44,0.00022999,2]
[317088377,1709677838776,-205.44,0.00022999,2]
[317088379,1709677838785,-205.44,0.00022999,2]
[317088380,1709677838795,-205.44,0.00022999,2]
[317088382,1709677838807,-205.44,0.00022999,2]
[317088383,1709677838817,-205.44,0.00022999,2]
[317088384,1709677838826,-205.44,0.00022999,2]
[317088386,1709677838835,-205.44,0.00022999,2]
[317088387,1709677838844,-205.44,0.00022999,2]
[317088389,1709677838853,-185.83601082,0.00022999,2]
[317088390,1709677838862,-500.0,0.00022999,2]
[317088391,1709677838871,-448.46606561,0.00022999,2]
[317088393,1709677838880,-500.0,0.00022999,2]
[317088394,1709677838889,-500.0,0.00022999,2]
[317088396,1709677838898,-500.0,0.00022999,2]
[317088397,1709677838907,-191.75336424,0.00022999,2]
[317088398,1709677838916,-463.87609152,0.00023,3]
[317088400,1709677838925,-1294731.65078831,0.00023,6]
[317088402,1709677838948,-912.4618471,0.00023,6]
[317088404,1709677838960,-21344.60348135,0.00023,6]
[317088405,1709677838972,-127372.83478102,0.00023,6]
[317088796,1709677843191,-321.84866469,0.000209,2]
[317088798,1709677843200,-90606.69093963,0.00023,6]
[317088805,1709677843256,-1742.49821295,0.00023,6]
[317088807,1709677843268,-25119.00914817,0.00023,6]
[317088824,1709677843413,-1283.98325054,0.00023,6]
[317088826,1709677843424,-3767.40128583,0.00023,6]
[317089095,1709677846690,-155.07909034,0.00022999,2]
[317089097,1709677846699,-362.53539744,0.00023,6]
[317089099,1709677846711,-616.6311699,0.00023,6]
[317090928,1709678757297,-154.93802479,0.00020789,2]
[317090929,1709678757324,-154.93802479,0.00020789,2]
[317090930,1709678757348,-1880.71104706,0.0002079,2]
[317090931,1709678757373,-167.735506,0.00020792,2]
[317090932,1709678757399,-1131.2118657,0.000209,2]